[Event "Titled Tuesday Blitz January 17 Late 2023"]
[White "Kleiman, Jake"]
[Black "Pesotskiy, Mikhail"]
[WhiteFideId "2020041"]
[BlackFideId "34164453"]
[WhiteElo "2399"]
[BlackElo "2153"]
[Result "1-0"]
[Round "06"]
[TimeControl "180+2"]
[Date "2023.01.17"]
[WhiteClock "0:00:55"]
[BlackClock "0:00:02"]

1. d4 {[%clk 0:02:56]}  Nf6 {[%clk 0:02:59]} 2. c4 {[%clk 0:02:56]}  e6 {[%clk 0:02:58]} 3. Nc3 {[%clk 0:02:53]}  Bb4 {[%clk 0:02:59]} 4. e3 {[%clk 0:02:53]}  b6 {[%clk 0:02:59]} 5. Ne2 {[%clk 0:02:53]}  Bb7 {[%clk 0:02:59]} 6. a3 {[%clk 0:02:54]}  Bd6 {[%clk 0:02:59]} 7. Qc2 {[%clk 0:02:49]}  O-O {[%clk 0:02:58]} 8. e4 {[%clk 0:02:48]}  e5 {[%clk 0:02:58]} 9. d5 {[%clk 0:02:49]}  Bc5 {[%clk 0:02:57]} 10. b4 {[%clk 0:02:45]}  Bd4 {[%clk 0:02:56]} 11. h3 {[%clk 0:02:41]}  Re8 {[%clk 0:02:52]} 12. Ng3 {[%clk 0:02:37]}  a5 {[%clk 0:02:51]} 13. Rb1 {[%clk 0:02:29]}  axb4 {[%clk 0:02:10]} 14. axb4 {[%clk 0:02:30]}  Na6 {[%clk 0:01:34]} 15. Bd3 {[%clk 0:02:25]}  c5 {[%clk 0:01:33]} 16. bxc5 {[%clk 0:01:56]}  Nxc5 {[%clk 0:01:34]} 17. O-O {[%clk 0:01:48]}  Ba6 {[%clk 0:01:21]} 18. Nb5 {[%clk 0:01:47]}  Bxb5 {[%clk 0:01:19]} 19. Rxb5 {[%clk 0:01:47]}  Qc7 {[%clk 0:01:11]} 20. Bg5 {[%clk 0:01:43]}  Ra3 {[%clk 0:01:06]} 21. Rd1 {[%clk 0:01:35]}  Rea8 {[%clk 0:00:58]} 22. Qe2 {[%clk 0:01:20]}  Ra2 {[%clk 0:00:34]} 23. Rd2 {[%clk 0:01:17]}  Rxd2 {[%clk 0:00:15]} 24. Qxd2 {[%clk 0:01:17]}  Ra3 {[%clk 0:00:14]} 25. Bxf6 {[%clk 0:01:11]}  Nxd3 {[%clk 0:00:04]} 26. Qg5 {[%clk 0:01:10]}  Bxf2+ {[%clk 0:00:04]} 27. Kh2 {[%clk 0:01:11]}  Bxg3+ {[%clk 0:00:04]} 28. Qxg3 {[%clk 0:01:11]}  g6 {[%clk 0:00:04]} 29. Qg5 {[%clk 0:01:03]}  Qc8 {[%clk 0:00:04]} 30. Rxb6 {[%clk 0:01:01]}  Nf4 {[%clk 0:00:02]} 31. Bxe5 {[%clk 0:00:56]}  Nh5 {[%clk 0:00:02]} 32. Rb8 {[%clk 0:00:54]}  Qxb8 {[%clk 0:00:02]} 33. Bxb8 {[%clk 0:00:55]} 1-0


[Site "https://www.chess.com"]

[Event "Titled Tuesday Blitz January 17 Late 2023"]
[White "Rodrigues, Tiago Pereira"]
[Black "Gurevich, Dmitry"]
[WhiteFideId "2101203"]
[BlackFideId "2000407"]
[WhiteElo "2155"]
[BlackElo "2393"]
[Result "1-0"]
[Round "06"]
[TimeControl "180+2"]
[Date "2023.01.17"]
[WhiteClock "0:02:07"]
[BlackClock "0:00:59"]

1. d4 {[%clk 0:03:00]}  Nf6 {[%clk 0:02:58]} 2. Bf4 {[%clk 0:02:59]}  c5 {[%clk 0:02:53]} 3. c3 {[%clk 0:02:58]}  cxd4 {[%clk 0:02:48]} 4. cxd4 {[%clk 0:02:58]}  g6 {[%clk 0:02:45]} 5. e3 {[%clk 0:02:57]}  Bg7 {[%clk 0:02:45]} 6. Nc3 {[%clk 0:02:56]}  O-O {[%clk 0:02:43]} 7. h3 {[%clk 0:02:55]}  d6 {[%clk 0:02:43]} 8. Nf3 {[%clk 0:02:55]}  b6 {[%clk 0:02:42]} 9. Rc1 {[%clk 0:02:51]}  Bb7 {[%clk 0:02:42]} 10. Be2 {[%clk 0:02:50]}  Nc6 {[%clk 0:02:34]} 11. O-O {[%clk 0:02:49]}  Qd7 {[%clk 0:02:28]} 12. Bb5 {[%clk 0:02:47]}  a6 {[%clk 0:02:27]} 13. Ba4 {[%clk 0:02:45]}  b5 {[%clk 0:02:26]} 14. Bc2 {[%clk 0:02:44]}  Rfc8 {[%clk 0:02:20]} 15. a4 {[%clk 0:02:43]}  Na5 {[%clk 0:02:14]} 16. axb5 {[%clk 0:02:43]}  axb5 {[%clk 0:02:14]} 17. Bd3 {[%clk 0:02:43]}  Nc4 {[%clk 0:01:36]} 18. Qe2 {[%clk 0:02:21]}  Nd5 {[%clk 0:01:23]} 19. Bg5 {[%clk 0:02:09]}  b4 {[%clk 0:01:09]} 20. Nxd5 {[%clk 0:02:08]}  Bxd5 {[%clk 0:01:03]} 21. Bxc4 {[%clk 0:02:07]}  Rxc4 {[%clk 0:00:59]} 22. Rxc4 {[%clk 0:02:07]} 1-0


[Site "https://www.chess.com"]

[Event "Titled Tuesday Blitz January 17 Late 2023"]
[White "Kochetov, Andrey"]
[Black "Remolar Gallen, Jose"]
[WhiteFideId "24130532"]
[BlackFideId "2215187"]
[WhiteElo "2165"]
[BlackElo "2285"]
[Result "1-0"]
[Round "06"]
[TimeControl "180+2"]
[Date "2023.01.17"]
[WhiteClock "0:00:04"]
[BlackClock "0:00:02"]

1. e4 {[%clk 0:03:00]}  d6 {[%clk 0:02:58]} 2. d4 {[%clk 0:03:01]}  Nf6 {[%clk 0:02:59]} 3. Bd3 {[%clk 0:03:00]}  g6 {[%clk 0:02:56]} 4. f4 {[%clk 0:02:56]}  Bg7 {[%clk 0:02:53]} 5. Nf3 {[%clk 0:02:56]}  O-O {[%clk 0:02:51]} 6. O-O {[%clk 0:02:56]}  c5 {[%clk 0:02:50]} 7. c3 {[%clk 0:02:56]}  cxd4 {[%clk 0:02:48]} 8. cxd4 {[%clk 0:02:56]}  Nc6 {[%clk 0:02:46]} 9. Nc3 {[%clk 0:02:50]}  Bg4 {[%clk 0:02:41]} 10. Be3 {[%clk 0:02:50]}  Nd7 {[%clk 0:02:29]} 11. Bc2 {[%clk 0:02:44]}  e5 {[%clk 0:02:23]} 12. d5 {[%clk 0:02:21]}  Nd4 {[%clk 0:02:20]} 13. fxe5 {[%clk 0:02:08]}  dxe5 {[%clk 0:02:13]} 14. Ne2 {[%clk 0:01:35]}  Qb6 {[%clk 0:01:35]} 15. Rb1 {[%clk 0:01:04]}  Rac8 {[%clk 0:01:33]} 16. Ba4 {[%clk 0:00:53]}  Nc5 {[%clk 0:01:26]} 17. Bc2 {[%clk 0:00:33]}  Na6 {[%clk 0:00:47]} 18. Nexd4 {[%clk 0:00:15]}  exd4 {[%clk 0:00:45]} 19. Bf2 {[%clk 0:00:15]}  Nb4 {[%clk 0:00:26]} 20. Bb3 {[%clk 0:00:16]}  Rfe8 {[%clk 0:00:26]} 21. h3 {[%clk 0:00:15]}  Bd7 {[%clk 0:00:10]} 22. e5 {[%clk 0:00:13]}  Bb5 {[%clk 0:00:09]} 23. Bxd4 {[%clk 0:00:13]}  Qa6 {[%clk 0:00:04]} 24. Re1 {[%clk 0:00:13]}  Nd3 {[%clk 0:00:04]} 25. Re3 {[%clk 0:00:13]}  Nf4 {[%clk 0:00:03]} 26. Kh1 {[%clk 0:00:11]}  Bd3 {[%clk 0:00:04]} 27. Rc1 {[%clk 0:00:09]}  Rxc1 {[%clk 0:00:04]} 28. Qxc1 {[%clk 0:00:09]}  Ne2 {[%clk 0:00:04]} 29. Qd2 {[%clk 0:00:09]}  Nxd4 {[%clk 0:00:04]} 30. Nxd4 {[%clk 0:00:06]}  Bb1 {[%clk 0:00:04]} 31. e6 {[%clk 0:00:05]}  Qf1+ {[%clk 0:00:04]} 32. Kh2 {[%clk 0:00:05]}  fxe6 {[%clk 0:00:04]} 33. Nxe6 {[%clk 0:00:05]}  Bh6 {[%clk 0:00:03]} 34. Qe1 {[%clk 0:00:04]}  Qf5 {[%clk 0:00:02]} 35. Rf3 {[%clk 0:00:04]} 1-0


[Site "https://www.chess.com"]

[Event "Titled Tuesday Blitz January 17 Late 2023"]
[White "Janaszak, Dawid"]
[Black "Zeman, Matyas"]
[WhiteFideId "1119206"]
[BlackFideId "364398"]
[WhiteElo "2316"]
[BlackElo "2296"]
[Result "1-0"]
[Round "06"]
[TimeControl "180+2"]
[Date "2023.01.17"]
[WhiteClock "0:00:48"]
[BlackClock "0:00:05"]

1. e4 {[%clk 0:03:00]}  e6 {[%clk 0:02:58]} 2. b3 {[%clk 0:02:58]}  d5 {[%clk 0:02:59]} 3. Bb2 {[%clk 0:02:59]}  dxe4 {[%clk 0:02:56]} 4. Nc3 {[%clk 0:02:59]}  Nf6 {[%clk 0:02:54]} 5. Qe2 {[%clk 0:02:59]}  Qd4 {[%clk 0:02:36]} 6. O-O-O {[%clk 0:02:51]}  Nc6 {[%clk 0:02:33]} 7. f3 {[%clk 0:02:45]}  Bb4 {[%clk 0:02:13]} 8. Kb1 {[%clk 0:02:20]}  Qd8 {[%clk 0:01:38]} 9. Nxe4 {[%clk 0:02:17]}  Nxe4 {[%clk 0:01:34]} 10. Qxe4 {[%clk 0:02:18]}  O-O {[%clk 0:01:31]} 11. Bd3 {[%clk 0:02:16]}  f5 {[%clk 0:01:30]} 12. Qe3 {[%clk 0:02:12]}  e5 {[%clk 0:01:19]} 13. g4 {[%clk 0:01:57]}  Qd6 {[%clk 0:01:09]} 14. Nh3 {[%clk 0:01:40]}  a5 {[%clk 0:01:01]} 15. gxf5 {[%clk 0:01:37]}  Bxf5 {[%clk 0:01:01]} 16. Bc4+ {[%clk 0:01:33]}  Kh8 {[%clk 0:00:58]} 17. Ng5 {[%clk 0:01:33]}  Nd4 {[%clk 0:00:52]} 18. Ne4 {[%clk 0:01:13]}  Bxe4 {[%clk 0:00:48]} 19. Qxe4 {[%clk 0:01:08]}  b5 {[%clk 0:00:34]} 20. Bd3 {[%clk 0:01:07]}  g6 {[%clk 0:00:17]} 21. Rde1 {[%clk 0:01:08]}  Rae8 {[%clk 0:00:16]} 22. f4 {[%clk 0:01:04]}  Bxd2 {[%clk 0:00:15]} 23. fxe5 {[%clk 0:01:03]}  Bxe1 {[%clk 0:00:15]} 24. Bxd4 {[%clk 0:00:50]}  Bf2 {[%clk 0:00:05]} 25. exd6+ {[%clk 0:00:48]} 1-0


[Site "https://www.chess.com"]

[Event "Titled Tuesday Blitz January 17 Late 2023"]
[White "Figorito, Nick"]
[Black "Rangel, Daniel"]
[WhiteFideId "30923689"]
[BlackFideId "2124475"]
[WhiteElo "2036"]
[BlackElo "2207"]
[Result "1-0"]
[Round "06"]
[TimeControl "180+2"]
[Date "2023.01.17"]
[WhiteClock "0:00:16"]
[BlackClock "0:00:00"]

1. Nf3 {[%clk 0:03:00]}  Nf6 {[%clk 0:02:56]} 2. g3 {[%clk 0:03:01]}  d5 {[%clk 0:02:55]} 3. Bg2 {[%clk 0:03:01]}  e6 {[%clk 0:02:53]} 4. O-O {[%clk 0:03:01]}  Be7 {[%clk 0:02:43]} 5. d4 {[%clk 0:02:59]}  O-O {[%clk 0:02:39]} 6. c4 {[%clk 0:03:00]}  a5 {[%clk 0:02:28]} 7. Qc2 {[%clk 0:02:59]}  c6 {[%clk 0:02:24]} 8. b3 {[%clk 0:02:58]}  b5 {[%clk 0:02:20]} 9. Ne5 {[%clk 0:02:53]}  Nfd7 {[%clk 0:02:16]} 10. Nf3 {[%clk 0:02:40]}  Ba6 {[%clk 0:02:13]} 11. Nbd2 {[%clk 0:02:35]}  a4 {[%clk 0:01:57]} 12. Bb2 {[%clk 0:02:21]}  a3 {[%clk 0:01:49]} 13. Bc1 {[%clk 0:02:21]}  Bf6 {[%clk 0:01:48]} 14. e3 {[%clk 0:02:16]}  b4 {[%clk 0:01:40]} 15. Rd1 {[%clk 0:02:12]}  c5 {[%clk 0:01:39]} 16. cxd5 {[%clk 0:02:03]}  exd5 {[%clk 0:01:35]} 17. Rb1 {[%clk 0:01:49]}  Qb6 {[%clk 0:01:22]} 18. Nf1 {[%clk 0:01:28]}  c4 {[%clk 0:01:18]} 19. bxc4 {[%clk 0:01:22]}  dxc4 {[%clk 0:01:18]} 20. Bxa3 {[%clk 0:01:21]}  Be7 {[%clk 0:01:07]} 21. Bxb4 {[%clk 0:01:12]}  Bxb4 {[%clk 0:01:05]} 22. a3 {[%clk 0:01:13]}  Nc6 {[%clk 0:01:01]} 23. axb4 {[%clk 0:01:08]}  Nxb4 {[%clk 0:01:00]} 24. Qd2 {[%clk 0:00:59]}  Rab8 {[%clk 0:00:58]} 25. Ne5 {[%clk 0:00:50]}  Nxe5 {[%clk 0:00:55]} 26. dxe5 {[%clk 0:00:51]}  Rfc8 {[%clk 0:00:54]} 27. Qc3 {[%clk 0:00:50]}  Qc5 {[%clk 0:00:50]} 28. Bh3 {[%clk 0:00:40]}  Rc6 {[%clk 0:00:38]} 29. Rxb4 {[%clk 0:00:33]}  Rf8 {[%clk 0:00:22]} 30. Rdb1 {[%clk 0:00:28]}  h5 {[%clk 0:00:18]} 31. Bg2 {[%clk 0:00:24]}  Rcc8 {[%clk 0:00:17]} 32. Nd2 {[%clk 0:00:24]}  Rce8 {[%clk 0:00:13]} 33. Nxc4 {[%clk 0:00:23]}  Rc8 {[%clk 0:00:12]} 34. Bf1 {[%clk 0:00:22]}  Rc7 {[%clk 0:00:11]} 35. Qd4 {[%clk 0:00:22]}  Qe7 {[%clk 0:00:09]} 36. Qe4 {[%clk 0:00:20]}  Bc8 {[%clk 0:00:06]} 37. Nd6 {[%clk 0:00:19]}  Be6 {[%clk 0:00:05]} 38. Rb8 {[%clk 0:00:18]}  g6 {[%clk 0:00:05]} 39. Rxf8+ {[%clk 0:00:17]}  Kxf8 {[%clk 0:00:06]} 40. Rb8+ {[%clk 0:00:17]}  Kg7 {[%clk 0:00:02]} 41. Qf4 {[%clk 0:00:16]}  Rd7 {[%clk 0:00:01]} 42. Ne8+ {[%clk 0:00:15]}  Kh7 {[%clk 0:00:01]} 43. Nf6+ {[%clk 0:00:15]}  Kg7 {[%clk 0:00:00]} 44. Rg8# {[%clk 0:00:16]} 1-0


[Site "https://www.chess.com"]

[Event "Titled Tuesday Blitz January 17 Late 2023"]
[White "Stachanczyk, Jacek"]
[Black "Odegov, Artem"]
[WhiteFideId "1116657"]
[BlackFideId "34183644"]
[WhiteElo "2147"]
[BlackElo "2261"]
[Result "0-1"]
[Round "06"]
[TimeControl "180+2"]
[Date "2023.01.17"]
[WhiteClock "0:00:33"]
[BlackClock "0:00:25"]

1. e4 {[%clk 0:02:51]}  c5 {[%clk 0:02:59]} 2. Nf3 {[%clk 0:02:51]}  d6 {[%clk 0:02:58]} 3. d4 {[%clk 0:02:51]}  cxd4 {[%clk 0:02:59]} 4. Nxd4 {[%clk 0:02:51]}  Nf6 {[%clk 0:02:59]} 5. Nc3 {[%clk 0:02:51]}  a6 {[%clk 0:03:00]} 6. Bg5 {[%clk 0:02:51]}  Nbd7 {[%clk 0:02:58]} 7. Qe2 {[%clk 0:02:50]}  h6 {[%clk 0:02:43]} 8. Bh4 {[%clk 0:02:49]}  g6 {[%clk 0:02:43]} 9. f4 {[%clk 0:02:46]}  e5 {[%clk 0:02:40]} 10. O-O-O {[%clk 0:02:41]}  exd4 {[%clk 0:02:38]} 11. e5 {[%clk 0:02:40]}  dxc3 {[%clk 0:02:29]} 12. exf6+ {[%clk 0:02:40]}  Ne5 {[%clk 0:02:26]} 13. fxe5 {[%clk 0:02:40]}  Be6 {[%clk 0:02:23]} 14. exd6 {[%clk 0:02:29]}  Qa5 {[%clk 0:02:23]} 15. d7+ {[%clk 0:02:27]}  Kd8 {[%clk 0:02:22]} 16. Rd3 {[%clk 0:01:31]}  cxb2+ {[%clk 0:02:07]} 17. Kxb2 {[%clk 0:01:32]}  Qxa2+ {[%clk 0:02:05]} 18. Kc1 {[%clk 0:01:32]}  Bb4 {[%clk 0:02:01]} 19. Qe5 {[%clk 0:00:55]}  Ba3+ {[%clk 0:01:11]} 20. Kd1 {[%clk 0:00:55]}  Qb1+ {[%clk 0:01:10]} 21. Ke2 {[%clk 0:00:55]}  Qxc2+ {[%clk 0:01:08]} 22. Kf3 {[%clk 0:00:51]}  Qc6+ {[%clk 0:00:55]} 23. Kg3 {[%clk 0:00:46]}  g5 {[%clk 0:00:51]} 24. Qa5+ {[%clk 0:00:41]}  b6 {[%clk 0:00:49]} 25. Qxa3 {[%clk 0:00:40]}  gxh4+ {[%clk 0:00:49]} 26. Kxh4 {[%clk 0:00:32]}  Qe4+ {[%clk 0:00:36]} 27. Kg3 {[%clk 0:00:32]}  Rg8+ {[%clk 0:00:34]} 28. Kf2 {[%clk 0:00:32]}  Qf4+ {[%clk 0:00:32]} 29. Kg1 {[%clk 0:00:32]}  Qxf6 {[%clk 0:00:31]} 30. h3 {[%clk 0:00:32]}  Qe5 {[%clk 0:00:28]} 31. Qd6 {[%clk 0:00:31]}  Qxd6 {[%clk 0:00:27]} 32. Rxd6 {[%clk 0:00:32]}  Kc7 {[%clk 0:00:26]} 33. Rd2 {[%clk 0:00:32]}  Bxd7 {[%clk 0:00:26]} 34. Kf2 {[%clk 0:00:32]}  Bc6 {[%clk 0:00:25]} 35. g4 {[%clk 0:00:32]}  Bxh1 {[%clk 0:00:25]} 36. Kg3 {[%clk 0:00:33]}  Bc6 {[%clk 0:00:25]} 0-1


[Site "https://www.chess.com"]

[Event "Titled Tuesday Blitz January 17 Late 2023"]
[White "Kostiukov, Alexandr"]
[Black "Pein, Jonathan"]
[WhiteFideId "14108100"]
[BlackFideId "417092"]
[WhiteElo "2271"]
[BlackElo "2265"]
[Result "1-0"]
[Round "06"]
[TimeControl "180+2"]
[Date "2023.01.17"]
[WhiteClock "0:00:18"]
[BlackClock "0:00:52"]

1. g3 {[%clk 0:02:56]}  h5 {[%clk 0:02:58]} 2. h4 {[%clk 0:02:56]}  d5 {[%clk 0:02:58]} 3. Bg2 {[%clk 0:02:55]}  Nc6 {[%clk 0:02:59]} 4. Nf3 {[%clk 0:02:53]}  e5 {[%clk 0:02:59]} 5. O-O {[%clk 0:02:52]}  Nh6 {[%clk 0:02:59]} 6. c4 {[%clk 0:02:50]}  d4 {[%clk 0:02:57]} 7. d3 {[%clk 0:02:48]}  Ng4 {[%clk 0:02:54]} 8. Nh2 {[%clk 0:02:42]}  Be7 {[%clk 0:02:53]} 9. e3 {[%clk 0:02:22]}  Be6 {[%clk 0:02:50]} 10. exd4 {[%clk 0:02:19]}  Nxd4 {[%clk 0:02:47]} 11. Nxg4 {[%clk 0:02:10]}  Bxg4 {[%clk 0:02:32]} 12. f3 {[%clk 0:02:10]}  Be6 {[%clk 0:02:23]} 13. Be3 {[%clk 0:02:06]}  Bc5 {[%clk 0:02:20]} 14. Qd2 {[%clk 0:02:02]}  Qe7 {[%clk 0:02:01]} 15. Nc3 {[%clk 0:01:43]}  O-O-O {[%clk 0:01:59]} 16. Ne4 {[%clk 0:01:31]}  Bxc4 {[%clk 0:01:54]} 17. Nxc5 {[%clk 0:01:16]}  Qxc5 {[%clk 0:01:52]} 18. dxc4 {[%clk 0:01:07]}  Nxf3+ {[%clk 0:01:42]} 19. Rxf3 {[%clk 0:00:57]}  Rxd2 {[%clk 0:01:33]} 20. Bxc5 {[%clk 0:00:56]}  f6 {[%clk 0:01:33]} 21. Bh3+ {[%clk 0:00:43]}  Kb8 {[%clk 0:01:33]} 22. Rf2 {[%clk 0:00:42]}  Rd3 {[%clk 0:01:31]} 23. Kg2 {[%clk 0:00:37]}  a5 {[%clk 0:01:29]} 24. Ba3 {[%clk 0:00:31]}  Rhd8 {[%clk 0:01:28]} 25. Re1 {[%clk 0:00:30]}  c6 {[%clk 0:01:22]} 26. Bf5 {[%clk 0:00:29]}  R3d4 {[%clk 0:01:18]} 27. b3 {[%clk 0:00:26]}  Rd2 {[%clk 0:01:11]} 28. Ree2 {[%clk 0:00:25]}  Rd1 {[%clk 0:01:10]} 29. Bc5 {[%clk 0:00:24]}  Kc7 {[%clk 0:01:08]} 30. Be3 {[%clk 0:00:22]}  Ra1 {[%clk 0:01:06]} 31. Rd2 {[%clk 0:00:21]}  Rd1 {[%clk 0:01:02]} 32. Rxd1 {[%clk 0:00:19]}  Rxd1 {[%clk 0:01:02]} 33. Rd2 {[%clk 0:00:20]}  Re1 {[%clk 0:01:00]} 34. Kf2 {[%clk 0:00:19]}  Ra1 {[%clk 0:00:58]} 35. Rd7+ {[%clk 0:00:19]}  Kb8 {[%clk 0:00:57]} 36. Bb6 {[%clk 0:00:19]}  Rxa2+ {[%clk 0:00:56]} 37. Kf3 {[%clk 0:00:19]}  Rd2 {[%clk 0:00:52]} 38. Rxd2 {[%clk 0:00:18]} 1-0


[Site "https://www.chess.com"]

[Event "Titled Tuesday Blitz January 17 Late 2023"]
[White "Gerbelli Neto, Eduardo"]
[Black "Sukandar, Irine Kharisma"]
[WhiteFideId "2103281"]
[BlackFideId "7101937"]
[WhiteElo "2114"]
[BlackElo "2390"]
[Result "0-1"]
[Round "06"]
[TimeControl "180+2"]
[Date "2023.01.17"]
[WhiteClock "0:00:08"]
[BlackClock "0:00:29"]

1. e4 {[%clk 0:03:00]}  c5 {[%clk 0:03:00]} 2. Nc3 {[%clk 0:03:00]}  d6 {[%clk 0:02:56]} 3. f4 {[%clk 0:03:00]}  g6 {[%clk 0:02:54]} 4. Nf3 {[%clk 0:03:00]}  Bg7 {[%clk 0:02:54]} 5. Bb5+ {[%clk 0:03:00]}  Bd7 {[%clk 0:02:44]} 6. Bc4 {[%clk 0:02:59]}  Nc6 {[%clk 0:02:33]} 7. O-O {[%clk 0:02:57]}  Nd4 {[%clk 0:02:27]} 8. Nxd4 {[%clk 0:02:35]}  cxd4 {[%clk 0:02:23]} 9. Ne2 {[%clk 0:02:36]}  Bc6 {[%clk 0:02:16]} 10. d3 {[%clk 0:01:43]}  d5 {[%clk 0:02:16]} 11. exd5 {[%clk 0:01:44]}  Bxd5 {[%clk 0:02:16]} 12. Bb5+ {[%clk 0:01:44]}  Bc6 {[%clk 0:02:16]} 13. Bxc6+ {[%clk 0:01:45]}  bxc6 {[%clk 0:02:16]} 14. f5 {[%clk 0:01:46]}  Nf6 {[%clk 0:02:12]} 15. Ng3 {[%clk 0:01:43]}  O-O {[%clk 0:02:11]} 16. Qf3 {[%clk 0:01:38]}  Qd7 {[%clk 0:02:08]} 17. Ne4 {[%clk 0:01:33]}  Nxe4 {[%clk 0:02:07]} 18. Qxe4 {[%clk 0:01:32]}  Rab8 {[%clk 0:02:04]} 19. b3 {[%clk 0:01:31]}  Rb5 {[%clk 0:02:04]} 20. fxg6 {[%clk 0:01:29]}  hxg6 {[%clk 0:02:03]} 21. Bf4 {[%clk 0:01:17]}  Rc5 {[%clk 0:01:57]} 22. Rf2 {[%clk 0:01:16]}  a5 {[%clk 0:01:52]} 23. Re1 {[%clk 0:01:15]}  e6 {[%clk 0:01:47]} 24. Qf3 {[%clk 0:01:02]}  a4 {[%clk 0:01:45]} 25. Bc1 {[%clk 0:01:01]}  axb3 {[%clk 0:01:38]} 26. axb3 {[%clk 0:00:57]}  Rf5 {[%clk 0:01:35]} 27. Qg3 {[%clk 0:00:53]}  Rxf2 {[%clk 0:01:32]} 28. Qxf2 {[%clk 0:00:52]}  Ra8 {[%clk 0:01:28]} 29. Bg5 {[%clk 0:00:44]}  Qd5 {[%clk 0:01:23]} 30. Bf6 {[%clk 0:00:38]}  Ra2 {[%clk 0:01:17]} 31. Bxg7 {[%clk 0:00:38]}  Kxg7 {[%clk 0:01:17]} 32. h3 {[%clk 0:00:38]}  Qc5 {[%clk 0:01:12]} 33. Re2 {[%clk 0:00:37]}  Ra1+ {[%clk 0:01:11]} 34. Kh2 {[%clk 0:00:37]}  Qd6+ {[%clk 0:01:11]} 35. g3 {[%clk 0:00:37]}  Qd5 {[%clk 0:01:11]} 36. Qg2 {[%clk 0:00:37]}  Qh5 {[%clk 0:00:58]} 37. Rf2 {[%clk 0:00:33]}  Qd1 {[%clk 0:00:54]} 38. g4 {[%clk 0:00:33]}  Qe1 {[%clk 0:00:51]} 39. Re2 {[%clk 0:00:22]}  Qc1 {[%clk 0:00:50]} 40. Kg3 {[%clk 0:00:18]}  g5 {[%clk 0:00:48]} 41. h4 {[%clk 0:00:14]}  Qf4+ {[%clk 0:00:48]} 42. Kh3 {[%clk 0:00:13]}  Rf1 {[%clk 0:00:45]} 43. hxg5 {[%clk 0:00:11]}  Rf3+ {[%clk 0:00:38]} 44. Kh4 {[%clk 0:00:11]}  Re3 {[%clk 0:00:39]} 45. Rf2 {[%clk 0:00:10]}  Qb8 {[%clk 0:00:39]} 46. Rxf7+ {[%clk 0:00:08]}  Kxf7 {[%clk 0:00:38]} 47. Qf2+ {[%clk 0:00:09]}  Kg8 {[%clk 0:00:33]} 48. g6 {[%clk 0:00:08]}  Qf8 {[%clk 0:00:29]} 49. Qg2 {[%clk 0:00:08]}  Qh6# {[%clk 0:00:29]} 0-1


[Site "https://www.chess.com"]

[Event "Titled Tuesday Blitz January 17 Late 2023"]
[White "Kuznecovs, Nikita"]
[Black "Abdyzhaparov, Aidar"]
[WhiteFideId "11604557"]
[BlackFideId "13800361"]
[WhiteElo "2287"]
[BlackElo "1978"]
[Result "1-0"]
[Round "06"]
[TimeControl "180+2"]
[Date "2023.01.17"]
[WhiteClock "0:00:44"]
[BlackClock "0:00:26"]

1. Nf3 {[%clk 0:02:54]}  d6 {[%clk 0:02:58]} 2. d4 {[%clk 0:02:52]}  g6 {[%clk 0:02:59]} 3. g3 {[%clk 0:02:52]}  Bg7 {[%clk 0:02:59]} 4. Bg2 {[%clk 0:02:53]}  Nc6 {[%clk 0:02:59]} 5. O-O {[%clk 0:02:51]}  h5 {[%clk 0:02:59]} 6. e4 {[%clk 0:02:50]}  Bg4 {[%clk 0:02:57]} 7. c3 {[%clk 0:02:50]}  h4 {[%clk 0:02:57]} 8. h3 {[%clk 0:02:50]}  Bxf3 {[%clk 0:02:56]} 9. Qxf3 {[%clk 0:02:50]}  hxg3 {[%clk 0:02:56]} 10. fxg3 {[%clk 0:02:50]}  Nf6 {[%clk 0:02:49]} 11. g4 {[%clk 0:02:43]}  O-O {[%clk 0:02:41]} 12. h4 {[%clk 0:02:20]}  Nh7 {[%clk 0:02:24]} 13. g5 {[%clk 0:02:04]}  e5 {[%clk 0:02:22]} 14. d5 {[%clk 0:02:02]}  Ne7 {[%clk 0:02:19]} 15. h5 {[%clk 0:01:43]}  gxh5 {[%clk 0:02:19]} 16. Qxh5 {[%clk 0:01:42]}  Ng6 {[%clk 0:02:20]} 17. Rf5 {[%clk 0:01:30]}  Nf4 {[%clk 0:01:49]} 18. Bxf4 {[%clk 0:01:19]}  exf4 {[%clk 0:01:50]} 19. Nd2 {[%clk 0:01:19]}  Qe7 {[%clk 0:01:42]} 20. Kf2 {[%clk 0:01:18]}  Rfe8 {[%clk 0:01:09]} 21. Rh1 {[%clk 0:01:16]}  Nf8 {[%clk 0:01:09]} 22. e5 {[%clk 0:01:03]}  dxe5 {[%clk 0:00:46]} 23. Ne4 {[%clk 0:01:02]}  Ng6 {[%clk 0:00:46]} 24. Qh7+ {[%clk 0:00:59]}  Kf8 {[%clk 0:00:45]} 25. Qxg6 {[%clk 0:01:00]}  Qd7 {[%clk 0:00:37]} 26. Rh7 {[%clk 0:00:58]}  Qxf5 {[%clk 0:00:31]} 27. Qxf5 {[%clk 0:00:53]}  Rad8 {[%clk 0:00:31]} 28. Rxg7 {[%clk 0:00:44]}  Kxg7 {[%clk 0:00:27]} 29. Qf6+ {[%clk 0:00:45]}  Kg8 {[%clk 0:00:26]} 30. Qh6 {[%clk 0:00:44]} 1-0


[Site "https://www.chess.com"]

[Event "Titled Tuesday Blitz January 17 Late 2023"]
[White "Herman, Daniel"]
[Black "Liu, Kelsey"]
[WhiteFideId "30935008"]
[BlackFideId "30944481"]
[WhiteElo "1956"]
[BlackElo "2065"]
[Result "1-0"]
[Round "06"]
[TimeControl "180+2"]
[Date "2023.01.17"]
[WhiteClock "0:00:57"]
[BlackClock "0:00:39"]

1. d4 {[%clk 0:03:00]}  Nf6 {[%clk 0:02:59]} 2. c4 {[%clk 0:02:59]}  e6 {[%clk 0:02:59]} 3. Nf3 {[%clk 0:02:58]}  b6 {[%clk 0:02:58]} 4. g3 {[%clk 0:02:51]}  Bb7 {[%clk 0:02:58]} 5. Bg2 {[%clk 0:02:48]}  Be7 {[%clk 0:02:59]} 6. d5 {[%clk 0:02:41]}  Qc8 {[%clk 0:02:53]} 7. Nc3 {[%clk 0:02:34]}  Bb4 {[%clk 0:02:46]} 8. O-O {[%clk 0:02:28]}  Bxc3 {[%clk 0:02:42]} 9. bxc3 {[%clk 0:02:29]}  exd5 {[%clk 0:02:41]} 10. Bg5 {[%clk 0:02:19]}  Ne4 {[%clk 0:02:33]} 11. cxd5 {[%clk 0:02:16]}  Nxc3 {[%clk 0:02:23]} 12. Qc2 {[%clk 0:02:05]}  Nxd5 {[%clk 0:02:20]} 13. Qe4+ {[%clk 0:02:02]}  Kf8 {[%clk 0:02:18]} 14. Nd4 {[%clk 0:01:50]}  Na6 {[%clk 0:02:07]} 15. Nf5 {[%clk 0:01:45]}  Nc5 {[%clk 0:02:00]} 16. Qg4 {[%clk 0:01:17]}  h5 {[%clk 0:01:49]} 17. Qh4 {[%clk 0:01:14]}  Ne6 {[%clk 0:01:30]} 18. Rac1 {[%clk 0:01:08]}  Nxg5 {[%clk 0:01:18]} 19. Qxg5 {[%clk 0:01:09]}  g6 {[%clk 0:01:18]} 20. Nd6 {[%clk 0:01:00]}  f6 {[%clk 0:00:50]} 21. Qxg6 {[%clk 0:00:58]}  cxd6 {[%clk 0:00:43]} 22. Rxc8+ {[%clk 0:00:55]}  Rxc8 {[%clk 0:00:43]} 23. Bxd5 {[%clk 0:00:55]}  Bxd5 {[%clk 0:00:44]} 24. Qxf6+ {[%clk 0:00:56]}  Kg8 {[%clk 0:00:43]} 25. Qg5+ {[%clk 0:00:56]}  Kf8 {[%clk 0:00:39]} 26. Qxd5 {[%clk 0:00:57]} 1-0


[Site "https://www.chess.com"]